[Event "*** Titled Tuesday Blitz"]
[Site "Chess.com"]
[Date "2019.06.04"]
[Round "7"]
[White "Poghosyan_Suren"]
[Black "catalin009"]
[Result "0-1"]
[WhiteElo "2552"]
[BlackElo "2507"]
[TimeControl "180+2"]
[EndTime "14:36:40 PDT"]
[Termination "catalin009 won by checkmate"]

1. Nf3 {[%clk 0:03:01.5]} 1... Nf6 {[%clk 0:03:00.8]} 2. c4 {[%clk 0:03:01.7]}
2... e6 {[%clk 0:03:01.9]} 3. g3 {[%clk 0:03:01.5]} 3... d5 {[%clk 0:03:03.1]}
4. Bg2 {[%clk 0:03:02.8]} 4... Be7 {[%clk 0:03:04.4]} 5. O-O {[%clk 0:03:03.9]}
5... O-O {[%clk 0:03:06]} 6. b3 {[%clk 0:03:05.4]} 6... c5 {[%clk 0:03:02.6]} 7.
Bb2 {[%clk 0:03:05.7]} 7... b6 {[%clk 0:03:04.1]} 8. e3 {[%clk 0:03:00.3]} 8...
Bb7 {[%clk 0:03:04.9]} 9. Qe2 {[%clk 0:03:00.5]} 9... Qc8 {[%clk 0:03:04.4]} 10.
d3 {[%clk 0:03:00.9]} 10... Rd8 {[%clk 0:03:01.2]} 11. Nc3 {[%clk 0:03:00.8]}
11... Nc6 {[%clk 0:03:00.6]} 12. Rac1 {[%clk 0:02:48.9]} 12... d4 {[%clk
0:02:56.3]} 13. exd4 {[%clk 0:02:50.8]} 13... Nxd4 {[%clk 0:02:49.3]} 14. Nxd4
{[%clk 0:02:51]} 14... Bxg2 {[%clk 0:02:50]} 15. Nf5 {[%clk 0:02:30.5]} 15...
exf5 {[%clk 0:02:50.7]} 16. Kxg2 {[%clk 0:02:31.5]} 16... Qc6+ {[%clk
0:02:43.9]} 17. Kg1 {[%clk 0:02:29.6]} 17... Bf8 {[%clk 0:02:25.7]} 18. Rcd1
{[%clk 0:02:18.8]} 18... Re8 {[%clk 0:02:12.5]} 19. Qc2 {[%clk 0:02:17]} 19...
f4 {[%clk 0:02:01.3]} 20. d4 {[%clk 0:02:14.2]} 20... fxg3 {[%clk 0:01:55.9]}
21. hxg3 {[%clk 0:02:12.8]} 21... cxd4 {[%clk 0:01:56.1]} 22. Rxd4 {[%clk
0:02:09.7]} 22... Qf3 {[%clk 0:01:52.4]} 23. Rf4 {[%clk 0:02:08.2]} 23... Qh5
{[%clk 0:01:53.4]} 24. Rh4 {[%clk 0:02:07]} 24... Qg6 {[%clk 0:01:42.2]} 25.
Qxg6 {[%clk 0:01:55.1]} 25... hxg6 {[%clk 0:01:44.1]} 26. Rd1 {[%clk 0:01:50.3]}
26... Bc5 {[%clk 0:01:41.1]} 27. Kf1 {[%clk 0:01:44.8]} 27... g5 {[%clk
0:01:39.8]} 28. Rh1 {[%clk 0:01:33.4]} 28... Ng4 {[%clk 0:01:40.8]} 29. Rd2
{[%clk 0:01:28]} 29... Re6 {[%clk 0:01:24.1]} 30. Nd5 {[%clk 0:01:25.4]} 30...
Rae8 {[%clk 0:01:24.7]} 31. Bd4 {[%clk 0:00:33.3]} 31... Re1+ {[%clk 0:01:08.7]}
32. Kg2 {[%clk 0:00:33.7]} 32... Rxh1 {[%clk 0:00:39]} 33. Kxh1 {[%clk
0:00:35.6]} 33... Bxd4 {[%clk 0:00:38.2]} 34. Rxd4 {[%clk 0:00:37.5]} 34...
Nxf2+ {[%clk 0:00:38.5]} 35. Kg2 {[%clk 0:00:39]} 35... Re2 {[%clk 0:00:35.5]}
36. Kf3 {[%clk 0:00:20.7]} 36... Rxa2 {[%clk 0:00:34.6]} 37. Ne7+ {[%clk
0:00:21.9]} 37... Kh7 {[%clk 0:00:30.2]} 38. b4 {[%clk 0:00:21.8]} 38... Nh3
{[%clk 0:00:12.5]} 39. c5 {[%clk 0:00:20.5]} 39... bxc5 {[%clk 0:00:13.4]} 40.
bxc5 {[%clk 0:00:21.3]} 40... Rc2 {[%clk 0:00:14.9]} 41. Kg4 {[%clk 0:00:21.1]}
41... Nf2+ {[%clk 0:00:12.4]} 42. Kf3 {[%clk 0:00:21.5]} 42... g4+ {[%clk
0:00:10.7]} 43. Ke3 {[%clk 0:00:22]} 43... a5 {[%clk 0:00:06.2]} 44. c6 {[%clk
0:00:22.1]} 44... f5 {[%clk 0:00:04.3]} 45. Rd6 {[%clk 0:00:19.2]} 45... Ne4
{[%clk 0:00:03.5]} 46. Re6 {[%clk 0:00:20.5]} 46... Nxg3 {[%clk 0:00:04.7]} 47.
Kf4 {[%clk 0:00:21.3]} 47... Rc3 {[%clk 0:00:04.8]} 48. Kg5 {[%clk 0:00:21.2]}
48... a4 {[%clk 0:00:05.7]} 49. Ng6 {[%clk 0:00:21.5]} 49... a3 {[%clk
0:00:04.5]} 50. Re8 {[%clk 0:00:22.2]} 50... Ne4+ {[%clk 0:00:05.7]} 51. Kxf5
{[%clk 0:00:24.1]} 51... Nd6+ {[%clk 0:00:07]} 52. Ke6 {[%clk 0:00:24.9]} 52...
Nxe8 {[%clk 0:00:08.6]} 53. Nf8+ {[%clk 0:00:26.8]} 53... Kh6 {[%clk 0:00:09.3]}
54. Kd7 {[%clk 0:00:26.9]} 54... a2 {[%clk 0:00:10.6]} 55. Kxe8 {[%clk
0:00:27.4]} 55... a1=Q {[%clk 0:00:12.2]} 56. Nd7 {[%clk 0:00:28.4]} 56... Rxc6
{[%clk 0:00:13]} 57. Ke7 {[%clk 0:00:29]} 57... Qe1+ {[%clk 0:00:14]} 58. Kf7
{[%clk 0:00:28.7]} 58... Qe6+ {[%clk 0:00:13.8]} 59. Kf8 {[%clk 0:00:29.3]}
59... Rc8# {[%clk 0:00:15.5]} 0-1

[Event "*** Titled Tuesday Blitz"]
[Site "Chess.com"]
[Date "2019.06.04"]
[Round "7"]
[White "LawrenceTrent"]
[Black "IakovUlivar"]
[Result "0-1"]
[WhiteElo "2661"]
[BlackElo "2495"]
[TimeControl "180+2"]
[EndTime "14:36:46 PDT"]
[Termination "IakovUlivar won by resignation"]

1. d4 {[%clk 0:03:01.9]} 1... d5 {[%clk 0:03:00.2]} 2. Bf4 {[%clk 0:03:01.6]}
2... Nf6 {[%clk 0:03:00.2]} 3. e3 {[%clk 0:02:59.4]} 3... e6 {[%clk 0:03:01]} 4.
Nd2 {[%clk 0:02:59.5]} 4... c5 {[%clk 0:03:01.8]} 5. c3 {[%clk 0:03:00.1]} 5...
Nc6 {[%clk 0:03:03]} 6. Ngf3 {[%clk 0:03:00.7]} 6... Be7 {[%clk 0:03:03.2]} 7.
Bd3 {[%clk 0:03:01.5]} 7... Nh5 {[%clk 0:03:03.8]} 8. Be5 {[%clk 0:03:01.3]}
8... f6 {[%clk 0:03:04.7]} 9. Bg3 {[%clk 0:03:02]} 9... g6 {[%clk 0:03:05.7]}
10. dxc5 {[%clk 0:02:55.5]} 10... Bxc5 {[%clk 0:03:02.6]} 11. e4 {[%clk
0:02:52.9]} 11... O-O {[%clk 0:02:54.1]} 12. exd5 {[%clk 0:02:51.5]} 12... exd5
{[%clk 0:02:53.9]} 13. O-O {[%clk 0:02:49.9]} 13... Nxg3 {[%clk 0:02:52.6]} 14.
hxg3 {[%clk 0:02:48.9]} 14... Qb6 {[%clk 0:02:43.9]} 15. Nb3 {[%clk 0:02:46.7]}
15... Bg4 {[%clk 0:02:44.1]} 16. Nxc5 {[%clk 0:02:47.6]} 16... Qxc5 {[%clk
0:02:45.1]} 17. Bc2 {[%clk 0:02:48.7]} 17... Kg7 {[%clk 0:02:34.5]} 18. Qd3
{[%clk 0:02:25.4]} 18... Bxf3 {[%clk 0:02:28.3]} 19. Qxf3 {[%clk 0:02:25.7]}
19... Rfe8 {[%clk 0:02:17.1]} 20. Rfe1 {[%clk 0:02:11.4]} 20... Re5 {[%clk
0:02:17.5]} 21. Rxe5 {[%clk 0:02:09.1]} 21... fxe5 {[%clk 0:02:06.9]} 22. Rd1
{[%clk 0:02:08.5]} 22... e4 {[%clk 0:02:01]} 23. Bxe4 {[%clk 0:01:53.5]} 23...
dxe4 {[%clk 0:01:52.9]} 24. Rd7+ {[%clk 0:01:52.7]} 24... Ne7 {[%clk 0:01:53.9]}
25. Qxe4 {[%clk 0:01:52.5]} 25... Re8 {[%clk 0:01:30.1]} 26. Qxb7 {[%clk
0:01:52.4]} 26... a5 {[%clk 0:01:28.8]} 27. b4 {[%clk 0:01:44]} 27... axb4
{[%clk 0:01:25.1]} 28. Rc7 {[%clk 0:01:31.8]} 28... Qd6 {[%clk 0:01:02.6]} 29.
Rd7 {[%clk 0:01:32.1]} 29... Qc5 {[%clk 0:00:56.9]} 30. Qxb4 {[%clk 0:01:22.1]}
30... Qxb4 {[%clk 0:00:57.4]} 31. cxb4 {[%clk 0:01:24]} 31... Kf6 {[%clk
0:00:57.7]} 32. Rd6+ {[%clk 0:01:17.6]} 32... Ke5 {[%clk 0:00:56.9]} 33. Ra6
{[%clk 0:01:18.6]} 33... Nd5 {[%clk 0:00:50]} 34. b5 {[%clk 0:01:18.5]} 34...
Rc8 {[%clk 0:00:43.2]} 35. a4 {[%clk 0:01:17.6]} 35... Rc1+ {[%clk 0:00:42.6]}
36. Kh2 {[%clk 0:01:18.4]} 36... Rb1 {[%clk 0:00:41.3]} 37. Ra7 {[%clk
0:01:17.7]} 37... h5 {[%clk 0:00:41.5]} 38. Rg7 {[%clk 0:01:09.3]} 38... Kf5
{[%clk 0:00:34.5]} 39. f3 {[%clk 0:01:07.3]} 39... Ra1 {[%clk 0:00:29.6]} 40.
Ra7 {[%clk 0:01:04]} 40... Rb1 {[%clk 0:00:21.8]} 41. Rb7 {[%clk 0:00:55.1]}
41... Nc3 {[%clk 0:00:19.1]} 42. Ra7 {[%clk 0:00:49.4]} 42... Rb4 {[%clk
0:00:18.4]} 43. a5 {[%clk 0:00:41.4]} 43... Rxb5 {[%clk 0:00:19.5]} 44. a6
{[%clk 0:00:41.7]} 44... Ra5 {[%clk 0:00:18.1]} 45. Rc7 {[%clk 0:00:38.5]} 45...
Nd5 {[%clk 0:00:15.2]} 46. Rd7 {[%clk 0:00:34.7]} 46... Ke6 {[%clk 0:00:14.7]}
47. Rg7 {[%clk 0:00:35.3]} 47... Kf6 {[%clk 0:00:14.6]} 48. Rd7 {[%clk
0:00:35.7]} 48... Ke6 {[%clk 0:00:10.8]} 49. Rg7 {[%clk 0:00:36.3]} 49... Ne7
{[%clk 0:00:11.4]} 50. Kh3 {[%clk 0:00:30.2]} 50... Rxa6 {[%clk 0:00:11.9]} 51.
g4 {[%clk 0:00:31.6]} 51... Kf6 {[%clk 0:00:10.1]} 52. Rh7 {[%clk 0:00:31.6]}
52... hxg4+ {[%clk 0:00:09]} 53. Kxg4 {[%clk 0:00:31.9]} 53... Nf5 {[%clk
0:00:09.7]} 54. Rb7 {[%clk 0:00:31.4]} 54... Ra4+ {[%clk 0:00:10.4]} 55. f4
{[%clk 0:00:32.6]} 55... Ra3 {[%clk 0:00:09]} 56. Rb6+ {[%clk 0:00:32.1]} 56...
Kg7 {[%clk 0:00:10.1]} 0-1

[Event "*** Titled Tuesday Blitz"]
[Site "Chess.com"]
[Date "2019.06.04"]
[Round "7"]
[White "JMatias"]
[Black "alturas_pacificas"]
[Result "1-0"]
[WhiteElo "2434"]
[BlackElo "2254"]
[TimeControl "180+2"]
[EndTime "14:36:47 PDT"]
[Termination "JMatias won by resignation"]

1. c4 {[%clk 0:03:01.9]} 1... c6 {[%clk 0:03:00.8]} 2. g3 {[%clk 0:03:03.3]}
2... d5 {[%clk 0:03:01.7]} 3. Nf3 {[%clk 0:03:04.8]} 3... Nf6 {[%clk 0:03:03.2]}
4. Bg2 {[%clk 0:03:05.7]} 4... Bf5 {[%clk 0:03:03.7]} 5. Qb3 {[%clk 0:03:04.3]}
5... Qb6 {[%clk 0:03:03.5]} 6. O-O {[%clk 0:03:00.9]} 6... e6 {[%clk 0:03:04.3]}
7. cxd5 {[%clk 0:03:01.1]} 7... exd5 {[%clk 0:03:05.1]} 8. d3 {[%clk 0:02:54.8]}
8... Qxb3 {[%clk 0:03:05.8]} 9. axb3 {[%clk 0:02:55.4]} 9... Be7 {[%clk
0:03:04.7]} 10. Be3 {[%clk 0:02:55.2]} 10... a6 {[%clk 0:03:04.8]} 11. Nc3
{[%clk 0:02:51.6]} 11... Nbd7 {[%clk 0:03:05.5]} 12. h3 {[%clk 0:02:46.4]} 12...
h6 {[%clk 0:03:06.2]} 13. g4 {[%clk 0:02:45.8]} 13... Bh7 {[%clk 0:03:06.3]} 14.
Nd4 {[%clk 0:02:41.8]} 14... O-O {[%clk 0:03:04.5]} 15. Nf5 {[%clk 0:02:42.5]}
15... Bxf5 {[%clk 0:03:03.1]} 16. gxf5 {[%clk 0:02:44.4]} 16... Bc5 {[%clk
0:03:01.1]} 17. d4 {[%clk 0:02:39.1]} 17... Bd6 {[%clk 0:02:59.3]} 18. Bd2
{[%clk 0:02:35.2]} 18... Rfe8 {[%clk 0:03:00.5]} 19. e3 {[%clk 0:02:36.3]} 19...
Rac8 {[%clk 0:02:47.5]} 20. Rfc1 {[%clk 0:02:36.6]} 20... Ra8 {[%clk 0:02:38.4]}
21. Na4 {[%clk 0:02:36.7]} 21... Rac8 {[%clk 0:02:39.3]} 22. b4 {[%clk
0:02:37.3]} 22... Ne4 {[%clk 0:02:37.1]} 23. Be1 {[%clk 0:02:38.3]} 23... Ndf6
{[%clk 0:02:05.3]} 24. Nc5 {[%clk 0:02:38.4]} 24... Re7 {[%clk 0:02:03.7]} 25.
f3 {[%clk 0:02:29.2]} 25... Ng5 {[%clk 0:01:58.8]} 26. Bf2 {[%clk 0:02:18.6]}
26... Rce8 {[%clk 0:01:50.5]} 27. Re1 {[%clk 0:02:18.4]} 27... Ngh7 {[%clk
0:01:48.3]} 28. h4 {[%clk 0:02:16]} 28... Nf8 {[%clk 0:01:48.7]} 29. e4 {[%clk
0:02:07.3]} 29... Bxc5 {[%clk 0:01:43.4]} 30. bxc5 {[%clk 0:01:59.1]} 30... dxe4
{[%clk 0:01:44.5]} 31. fxe4 {[%clk 0:01:58.8]} 31... Nxe4 {[%clk 0:01:45.8]} 32.
Ra3 {[%clk 0:01:28.1]} 32... Nxf2 {[%clk 0:01:38.2]} 33. Rxe7 {[%clk 0:01:29.9]}
33... Rxe7 {[%clk 0:01:34.3]} 34. Kxf2 {[%clk 0:01:31.8]} 34... Nd7 {[%clk
0:01:32.2]} 35. Rb3 {[%clk 0:01:29.5]} 35... Nf6 {[%clk 0:01:33.1]} 36. Bf3
{[%clk 0:01:29.1]} 36... Kf8 {[%clk 0:01:33.5]} 37. Kg3 {[%clk 0:01:24.5]} 37...
Ke8 {[%clk 0:01:33.6]} 38. Kf4 {[%clk 0:01:25.8]} 38... Kd8 {[%clk 0:01:33.8]}
39. Bg2 {[%clk 0:01:21.9]} 39... Kc7 {[%clk 0:01:31.9]} 40. Bf3 {[%clk 0:01:23]}
40... Re1 {[%clk 0:01:29]} 41. Rd3 {[%clk 0:01:15.9]} 41... Re8 {[%clk 0:01:19]}
42. Rd2 {[%clk 0:01:16.5]} 42... Rd8 {[%clk 0:01:14.9]} 43. h5 {[%clk
0:01:15.8]} 43... b6 {[%clk 0:00:51.9]} 44. b4 {[%clk 0:01:12.8]} 44... bxc5
{[%clk 0:00:52]} 45. bxc5 {[%clk 0:01:13.4]} 45... a5 {[%clk 0:00:53]} 46. Rg2
{[%clk 0:01:05.9]} 46... Rxd4+ {[%clk 0:00:49.9]} 47. Ke3 {[%clk 0:01:07.2]}
47... Rd7 {[%clk 0:00:42.9]} 48. Ra2 {[%clk 0:00:56.2]} 48... Nd5+ {[%clk
0:00:40.9]} 49. Kf2 {[%clk 0:00:57.4]} 49... Ne7 {[%clk 0:00:22.8]} 50. f6
{[%clk 0:00:55.7]} 50... gxf6 {[%clk 0:00:23.2]} 51. Rxa5 {[%clk 0:00:57.6]}
51... Nd5 {[%clk 0:00:20.6]} 52. Ra8 {[%clk 0:00:55.5]} 52... Rd8 {[%clk
0:00:14.3]} 53. Ra7+ {[%clk 0:00:53.7]} 53... Kb8 {[%clk 0:00:14.9]} 54. Rxf7
{[%clk 0:00:54.5]} 54... Rh8 {[%clk 0:00:15.6]} 55. Bxd5 {[%clk 0:00:52.8]}
55... cxd5 {[%clk 0:00:17.5]} 56. Rxf6 {[%clk 0:00:53.8]} 56... Rc8 {[%clk
0:00:11.7]} 57. c6 {[%clk 0:00:53.5]} 57... Ka7 {[%clk 0:00:11.5]} 58. Rxh6
{[%clk 0:00:53.4]} 58... Kb6 {[%clk 0:00:12.8]} 59. Ke3 {[%clk 0:00:54.2]} 59...
Kc7 {[%clk 0:00:11.9]} 60. Kd4 {[%clk 0:00:55.2]} 60... Rd8 {[%clk 0:00:12.3]}
61. Rg6 {[%clk 0:00:55.8]} 61... Rh8 {[%clk 0:00:13]} 62. h6 {[%clk 0:00:56.9]}
62... Rd8 {[%clk 0:00:13.9]} 63. Kc5 {[%clk 0:00:52.3]} 63... d4 {[%clk
0:00:14.3]} 64. Rg7+ {[%clk 0:00:53.7]} 64... Kc8 {[%clk 0:00:15.5]} 65. h7
{[%clk 0:00:55]} 65... d3 {[%clk 0:00:15.9]} 66. Rg8 {[%clk 0:00:56.3]} 66... d2
{[%clk 0:00:09.4]} 67. Rxd8+ {[%clk 0:00:56.6]} 67... Kxd8 {[%clk 0:00:08.6]}
68. h8=Q+ {[%clk 0:00:58.5]} 68... Kc7 {[%clk 0:00:10.1]} 69. Qg7+ {[%clk
0:00:59]} 1-0

[Event "*** Titled Tuesday Blitz"]
[Site "Chess.com"]
[Date "2019.06.04"]
[Round "7"]
[White "Alexander_Moskalenko"]
[Black "kleinebeer98"]
[Result "0-1"]
[WhiteElo "2878"]
[BlackElo "2732"]
[TimeControl "180+2"]
[EndTime "14:37:17 PDT"]
[Termination "kleinebeer98 won by resignation"]

1. Nf3 {[%clk 0:03:01.5]} 1... d5 {[%clk 0:02:59.7]} 2. d4 {[%clk 0:03:02.4]}
2... Nc6 {[%clk 0:03:00.9]} 3. e3 {[%clk 0:03:00.9]} 3... Bg4 {[%clk 0:03:02.2]}
4. Be2 {[%clk 0:03:02.2]} 4... Nf6 {[%clk 0:03:02.8]} 5. O-O {[%clk 0:03:03.3]}
5... e6 {[%clk 0:03:04.3]} 6. h3 {[%clk 0:03:04.7]} 6... Bh5 {[%clk 0:03:04.5]}
7. c4 {[%clk 0:03:03]} 7... dxc4 {[%clk 0:03:03.8]} 8. Bxc4 {[%clk 0:03:03.6]}
8... Bd6 {[%clk 0:03:04.2]} 9. Nc3 {[%clk 0:03:04.8]} 9... O-O {[%clk 0:03:03]}
10. Be2 {[%clk 0:03:05]} 10... a6 {[%clk 0:02:57.6]} 11. b3 {[%clk 0:03:06.2]}
11... Qe7 {[%clk 0:02:55.4]} 12. Bb2 {[%clk 0:03:07.6]} 12... Rfd8 {[%clk
0:02:54.4]} 13. Nd2 {[%clk 0:03:06.3]} 13... Bxe2 {[%clk 0:02:39.1]} 14. Qxe2
{[%clk 0:03:08.2]} 14... e5 {[%clk 0:02:38.7]} 15. d5 {[%clk 0:02:43]} 15... Nb4
{[%clk 0:02:39.1]} 16. e4 {[%clk 0:02:43.8]} 16... c6 {[%clk 0:02:36.8]} 17.
dxc6 {[%clk 0:02:42.3]} 17... Nxc6 {[%clk 0:02:35.5]} 18. Nd5 {[%clk 0:02:28.8]}
18... Nxd5 {[%clk 0:02:19.4]} 19. exd5 {[%clk 0:02:30.7]} 19... Nb4 {[%clk
0:02:20]} 20. Nc4 {[%clk 0:02:25.7]} 20... Nxd5 {[%clk 0:02:16.3]} 21. Nxd6
{[%clk 0:02:25.8]} 21... Rxd6 {[%clk 0:02:12.8]} 22. Qxe5 {[%clk 0:02:26.6]}
22... Qxe5 {[%clk 0:02:11.6]} 23. Bxe5 {[%clk 0:02:28.5]} 23... Re6 {[%clk
0:02:13.5]} 24. Bg3 {[%clk 0:02:22.2]} 24... Nc3 {[%clk 0:02:09.2]} 25. Kh2
{[%clk 0:02:22.7]} 25... Re2 {[%clk 0:02:05.6]} 26. a4 {[%clk 0:02:21.5]} 26...
Rb2 {[%clk 0:01:58.8]} 27. Ra3 {[%clk 0:01:56.6]} 27... Ne4 {[%clk 0:01:26.1]}
28. Re1 {[%clk 0:01:41]} 28... Nd2 {[%clk 0:01:09.2]} 29. a5 {[%clk 0:01:22.4]}
29... Rc8 {[%clk 0:01:00]} 30. Bc7 {[%clk 0:01:14]} 30... h5 {[%clk 0:00:52.5]}
31. Bb6 {[%clk 0:01:11.9]} 31... Nxb3 {[%clk 0:00:47.5]} 32. Re7 {[%clk
0:01:01.7]} 32... Nd2 {[%clk 0:00:46.8]} 33. g4 {[%clk 0:00:55.2]} 33... hxg4
{[%clk 0:00:45.6]} 34. hxg4 {[%clk 0:00:57.1]} 34... Nc4 {[%clk 0:00:46.8]} 35.
Rf3 {[%clk 0:00:58.6]} 35... f6 {[%clk 0:00:25.8]} 36. Rxb7 {[%clk 0:00:55.1]}
36... Nxa5 {[%clk 0:00:26.4]} 37. Rc7 {[%clk 0:00:54.7]} 37... Rxc7 {[%clk
0:00:25.3]} 38. Bxc7 {[%clk 0:00:56.6]} 38... Nc4 {[%clk 0:00:26.8]} 39. Rc3
{[%clk 0:00:53.8]} 39... Nd2 {[%clk 0:00:23.4]} 40. Bg3 {[%clk 0:00:47.3]} 40...
a5 {[%clk 0:00:21.6]} 41. Rc8+ {[%clk 0:00:45.3]} 41... Kh7 {[%clk 0:00:23]} 42.
Ra8 {[%clk 0:00:47.2]} 42... Nc4 {[%clk 0:00:22.2]} 43. Ra7 {[%clk 0:00:46.4]}
43... Kg6 {[%clk 0:00:21.3]} 44. Kh3 {[%clk 0:00:44.9]} 44... Rb4 {[%clk
0:00:19.4]} 45. f4 {[%clk 0:00:45.8]} 45... f5 {[%clk 0:00:15.8]} 46. gxf5+
{[%clk 0:00:46.8]} 46... Kf6 {[%clk 0:00:09.1]} 47. Kg4 {[%clk 0:00:06.7]} 47...
Ne3+ {[%clk 0:00:09.8]} 48. Kf3 {[%clk 0:00:08]} 48... Nxf5 {[%clk 0:00:10.7]}
49. Be1 {[%clk 0:00:08.5]} 49... Rb3+ {[%clk 0:00:10.9]} 50. Kg4 {[%clk
0:00:09.8]} 50... Ne3+ {[%clk 0:00:08.9]} 51. Kh5 {[%clk 0:00:09.1]} 51... g6+
{[%clk 0:00:10]} 52. Kh6 {[%clk 0:00:08.3]} 52... Nf5+ {[%clk 0:00:11.5]} 53.
Kh7 {[%clk 0:00:08.9]} 53... Rh3+ {[%clk 0:00:13.4]} 54. Kg8 {[%clk 0:00:10]}
54... Ne7+ {[%clk 0:00:14.9]} 55. Rxe7 {[%clk 0:00:11]} 55... Kxe7 {[%clk
0:00:16.8]} 56. Bxa5 {[%clk 0:00:12.5]} 56... Kf6 {[%clk 0:00:17.2]} 57. Bb4
{[%clk 0:00:12.4]} 57... Kf5 {[%clk 0:00:17.9]} 58. Bd6 {[%clk 0:00:14]} 58...
Rd3 {[%clk 0:00:18.5]} 59. Bc7 {[%clk 0:00:14.1]} 59... Rd4 {[%clk 0:00:17.2]}
60. Kh7 {[%clk 0:00:10]} 60... Rd7+ {[%clk 0:00:17.4]} 61. Kh6 {[%clk
0:00:11.6]} 61... g5 {[%clk 0:00:16.5]} 62. fxg5 {[%clk 0:00:11.5]} 62... Rxc7
{[%clk 0:00:17.8]} 63. g6 {[%clk 0:00:13.4]} 63... Kf6 {[%clk 0:00:19.3]} 64.
Kh5 {[%clk 0:00:13.5]} 64... Kg7 {[%clk 0:00:20.6]} 65. Kg5 {[%clk 0:00:11.6]}
65... Rc5+ {[%clk 0:00:21.4]} 0-1

[Event "*** Titled Tuesday Blitz"]
[Site "Chess.com"]
[Date "2019.06.04"]
[Round "7"]
[White "FelixBlohberger"]
[Black "GMKrikor"]
[Result "1/2-1/2"]
[WhiteElo "2626"]
[BlackElo "2702"]
[TimeControl "180+2"]
[EndTime "14:37:19 PDT"]
[Termination "Game drawn by repetition"]

1. e4 {[%clk 0:03:01.7]} 1... c5 {[%clk 0:02:49.8]} 2. Nf3 {[%clk 0:03:00.8]}
2... e6 {[%clk 0:02:50.5]} 3. d4 {[%clk 0:03:01.1]} 3... cxd4 {[%clk 0:02:51]}
4. Nxd4 {[%clk 0:03:03]} 4... Nc6 {[%clk 0:02:51.2]} 5. Nc3 {[%clk 0:03:03.5]}
5... a6 {[%clk 0:02:52]} 6. Be3 {[%clk 0:03:02.9]} 6... Nf6 {[%clk 0:02:51.2]}
7. a3 {[%clk 0:03:00.8]} 7... d5 {[%clk 0:02:13.7]} 8. exd5 {[%clk 0:02:55.2]}
8... exd5 {[%clk 0:02:15.6]} 9. Be2 {[%clk 0:02:50.8]} 9... Bd6 {[%clk
0:02:15.1]} 10. O-O {[%clk 0:02:43.2]} 10... O-O {[%clk 0:02:11.8]} 11. Qd2
{[%clk 0:02:28.8]} 11... Be6 {[%clk 0:01:59.9]} 12. Bf4 {[%clk 0:02:23.1]} 12...
Bc5 {[%clk 0:01:28.8]} 13. Nxc6 {[%clk 0:02:02.9]} 13... bxc6 {[%clk 0:01:27.5]}
14. Bd3 {[%clk 0:02:04.3]} 14... Bd6 {[%clk 0:01:09]} 15. Ne2 {[%clk 0:02:00.2]}
15... a5 {[%clk 0:01:08.8]} 16. Bxd6 {[%clk 0:01:33.8]} 16... Qxd6 {[%clk
0:01:07.9]} 17. c4 {[%clk 0:01:29]} 17... a4 {[%clk 0:00:48]} 18. cxd5 {[%clk
0:01:25.6]} 18... cxd5 {[%clk 0:00:48.1]} 19. Rac1 {[%clk 0:01:15.1]} 19... Ng4
{[%clk 0:00:41.7]} 20. Qf4 {[%clk 0:01:13.2]} 20... Qxf4 {[%clk 0:00:39.1]} 21.
Nxf4 {[%clk 0:01:15.1]} 21... Rfb8 {[%clk 0:00:38.5]} 22. Rc2 {[%clk 0:00:58.1]}
22... Nf6 {[%clk 0:00:30.8]} 23. Rd1 {[%clk 0:00:36.2]} 23... Rb6 {[%clk
0:00:29.8]} 24. f3 {[%clk 0:00:29.5]} 24... Kf8 {[%clk 0:00:25.4]} 25. g4 {[%clk
0:00:25.4]} 25... g5 {[%clk 0:00:18.1]} 26. Ne2 {[%clk 0:00:21.4]} 26... Rab8
{[%clk 0:00:18.9]} 27. Rdd2 {[%clk 0:00:21.7]} 27... Nd7 {[%clk 0:00:17.3]} 28.
Nd4 {[%clk 0:00:17.3]} 28... h6 {[%clk 0:00:17.3]} 29. Kf2 {[%clk 0:00:17.4]}
29... Ne5 {[%clk 0:00:18.6]} 30. Be2 {[%clk 0:00:16.7]} 30... Ke7 {[%clk
0:00:19.6]} 31. Rc7+ {[%clk 0:00:16]} 31... Kf6 {[%clk 0:00:19.8]} 32. Ra7
{[%clk 0:00:07.7]} 32... Rxb2 {[%clk 0:00:19.4]} 33. Rxb2 {[%clk 0:00:08.9]}
33... Rxb2 {[%clk 0:00:21.3]} 34. Rxa4 {[%clk 0:00:10.1]} 34... Nd3+ {[%clk
0:00:22.2]} 35. Ke3 {[%clk 0:00:10]} 35... Nf4 {[%clk 0:00:23.8]} 36. Ra6 {[%clk
0:00:10.5]} 36... Kg7 {[%clk 0:00:11.6]} 37. a4 {[%clk 0:00:10.6]} 37... Ra2
{[%clk 0:00:08]} 38. a5 {[%clk 0:00:10.6]} 38... Bd7 {[%clk 0:00:04.8]} 39. Ra7
{[%clk 0:00:11]} 39... Ra3+ {[%clk 0:00:06.2]} 40. Kf2 {[%clk 0:00:11.8]} 40...
Be6 {[%clk 0:00:04.6]} 41. a6 {[%clk 0:00:11.5]} 41... Kf6 {[%clk 0:00:05.1]}
42. Ra8 {[%clk 0:00:12.1]} 42... Ke5 {[%clk 0:00:06.6]} 43. Nc6+ {[%clk
0:00:12.2]} 43... Kd6 {[%clk 0:00:08.1]} 44. Nd4 {[%clk 0:00:11.6]} 44... Ra4
{[%clk 0:00:09.8]} 45. Ke3 {[%clk 0:00:12.1]} 45... Ra3+ {[%clk 0:00:07.8]} 46.
Kf2 {[%clk 0:00:13]} 46... Ra2 {[%clk 0:00:09.3]} 47. Rd8+ {[%clk 0:00:11.8]}
47... Kc5 {[%clk 0:00:08.6]} 48. Nb3+ {[%clk 0:00:09.2]} 48... Kb4 {[%clk
0:00:06.7]} 49. Nc1 {[%clk 0:00:06.2]} 49... Ra1 {[%clk 0:00:03.7]} 50. Nd3+
{[%clk 0:00:06.4]} 50... Nxd3+ {[%clk 0:00:04.6]} 51. Bxd3 {[%clk 0:00:08.3]}
51... Kc3 {[%clk 0:00:06.4]} 52. Be2 {[%clk 0:00:05.1]} 52... Kd2 {[%clk
0:00:05.5]} 53. Rb8 {[%clk 0:00:03.9]} 53... d4 {[%clk 0:00:04.4]} 54. Rb2+
{[%clk 0:00:05.2]} 54... Kc3 {[%clk 0:00:05.8]} 55. Rb7 {[%clk 0:00:06.6]} 55...
d3 {[%clk 0:00:06.6]} 56. Rc7+ {[%clk 0:00:07.6]} 56... Bc4 {[%clk 0:00:08.1]}
57. Bf1 {[%clk 0:00:06.1]} 57... Rxa6 {[%clk 0:00:09.3]} 58. Ke3 {[%clk
0:00:05.5]} 58... Re6+ {[%clk 0:00:09.5]} 59. Kf2 {[%clk 0:00:06.7]} 59... Re8
{[%clk 0:00:07.6]} 60. Rc6 {[%clk 0:00:05.7]} 60... Re7 {[%clk 0:00:05.8]} 61.
Rc8 {[%clk 0:00:06.1]} 61... Re6 {[%clk 0:00:05.1]} 62. Rc7 {[%clk 0:00:06.4]}
62... Rd6 {[%clk 0:00:05.9]} 63. Ke3 {[%clk 0:00:05.8]} 63... Re6+ {[%clk
0:00:06.5]} 64. Kf2 {[%clk 0:00:06.9]} 1/2-1/2